fUSD/lending_fUSD_20250215
["ID","MTS","AMOUNT","RATE_DAILY","PERIOD"]
[353148262,1739611876518,-500.0,0.00011698,2]
[353148263,1739611876528,-500.0,0.00011698,2]
[353148264,1739611876537,-500.0,0.00011698,2]
[353148265,1739611876546,-500.0,0.00011698,2]
[353148266,1739611876556,-283.25463429,0.00011698,2]
[353148267,1739611876565,-666.54,0.00011698,2]
[353148268,1739611876575,-500.0,0.00011698,2]
[353148269,1739611876584,-500.0,0.00011698,2]
[353148270,1739611876595,-553.58,0.00011698,2]
[353148271,1739611876605,-656.03,0.00011698,2]
[353148272,1739611876615,-500.0,0.00011698,2]
[353148273,1739611876625,-500.0,0.00011698,2]
[353148274,1739611876636,-569.62,0.00011698,2]
[353148275,1739611876645,-500.0,0.00011698,2]
[353148276,1739611876655,-500.0,0.00011698,2]
[353148277,1739611876664,-500.0,0.00011698,2]
[353148278,1739611876674,-500.0,0.00011698,2]
[353148279,1739611876684,-628.27,0.00011698,2]
[353148280,1739611876693,-619.35,0.00011698,2]
[353148281,1739611876703,-572.09,0.00011698,2]
[353148282,1739611876713,-682.02,0.00011698,2]
[353148283,1739611876722,-500.0,0.00011698,2]
[353148284,1739611876732,-812.88,0.00011698,2]
[353148285,1739611876742,-500.0,0.00011698,2]
[353148286,1739611876752,-500.0,0.00011698,2]
[353148287,1739611876761,-672.16,0.00011698,2]
[353148288,1739611876772,-500.0,0.00011698,2]
[353148289,1739611876781,-500.0,0.00011698,2]
[353148290,1739611876791,-500.0,0.00011698,2]
[353148291,1739611876800,-500.0,0.00011698,2]
[353148292,1739611876810,-500.0,0.00011698,2]
[353148293,1739611876819,-575.78,0.00011698,2]
[353148294,1739611876828,-615.98,0.00011698,2]
[353148295,1739611876837,-500.0,0.00011698,2]
[353148296,1739611876847,-500.0,0.00011698,2]
[353148297,1739611876856,-500.0,0.00011698,2]
[353148298,1739611876865,-500.0,0.00011698,2]
[353148299,1739611876874,-691.81,0.00011698,2]
[353148300,1739611876883,-500.0,0.00011698,2]
[353148301,1739611876893,-500.0,0.00011698,2]
[353148302,1739611876902,-778.06,0.00011698,2]
[353148303,1739611876911,-648.19,0.00011698,2]
[353148304,1739611876921,-572.69612371,0.00011698,2]
[353148305,1739611876931,-536.79,0.00011698,2]
[353148306,1739611876940,-638.9,0.00011698,2]
[353148307,1739611876949,-500.0,0.00011698,2]
[353148308,1739611876959,-1073.44,0.00011698,2]
[353148309,1739611876968,-676.69,0.00011698,2]
[353148310,1739611876978,-500.0,0.00011698,2]
[353148311,1739611876988,-568.45,0.00011698,2]
[353148312,1739611876998,-1057.92,0.00011698,2]
[353148313,1739611877008,-500.0,0.00011698,2]
[353148314,1739611877018,-500.0,0.00011698,2]
[353148315,1739611877028,-1086.69,0.00011698,2]
[353148316,1739611877038,-829.19,0.00011698,2]
[353148317,1739611877048,-500.0,0.00011698,2]
[353148318,1739611877059,-793.24,0.00011698,2]
[353148319,1739611877070,-500.0,0.00011698,2]
[353148320,1739611877079,-615.24,0.00011698,2]
[353148321,1739611877089,-783.17,0.00011698,2]
[353148322,1739611877098,-991.47,0.00011698,2]
[353148323,1739611877107,-1433.75,0.00011698,2]
[353148324,1739611877117,-971.58,0.00011698,2]
[353148325,1739611877127,-789.55,0.00011698,2]
[353148326,1739611877138,-552.21,0.00011698,2]
[353148327,1739611877148,-500.0,0.00011698,2]
[353148328,1739611877159,-1175.04,0.00011698,2]
[353148329,1739611877170,-500.0,0.00011698,2]
[353148330,1739611877180,-731.56,0.00011698,2]
[353148331,1739611877189,-500.0,0.00011698,2]
[353148332,1739611877199,-2056.44,0.00011698,2]
[353148333,1739611877208,-529.5,0.00011698,2]
[353148334,1739611877217,-703.41,0.00011698,2]
[353148335,1739611877227,-440.34158145,0.00011698,2]
[353148336,1739611877236,-500.0,0.00011698,2]
[353148337,1739611877245,-895.05,0.00011698,2]
[353148338,1739611877254,-717.51,0.00011698,2]
[353148339,1739611877263,-610.86,0.00011698,2]
[353148340,1739611877273,-1754.36,0.00011698,2]
[353148341,1739611877283,-743.87,0.00011698,2]
[353148342,1739611877293,-1009.67,0.00011698,2]
[353148343,1739611877302,-2982.91,0.00011698,2]
[353148344,1739611877312,-995.96,0.00011698,2]
[353148345,1739611877321,-500.0,0.00011698,2]
[353148346,1739611877330,-1159.35,0.00011698,2]
[353148347,1739611877340,-581.33,0.00011698,2]
[353148348,1739611877350,-779.91,0.00011698,2]
[353148349,1739611877359,-735.73,0.00011698,2]
[353148350,1739611877369,-1222.91,0.00011698,2]
[353148351,1739611877378,-1141.54,0.00011698,2]
[353148352,1739611877388,-657.56,0.00011698,2]
[353148353,1739611877398,-921.4,0.00011698,2]
[353148354,1739611877408,-802.93,0.00011698,2]
[353148355,1739611877417,-560.26,0.00011698,2]
[353148356,1739611877427,-646.72,0.00011698,2]
[353148357,1739611877436,-1756.73,0.00011698,2]
[353148358,1739611877446,-2263.15,0.00011698,2]
[353148359,1739611877456,-645.55,0.00011698,2]
[353148360,1739611877466,-630.63,0.00011698,2]
[353148361,1739611877475,-500.0,0.00011698,2]
[353148362,1739611877485,-904.92,0.00011698,2]
[353148363,1739611877495,-864.22,0.00011698,2]
[353148364,1739611877505,-500.0,0.00011698,2]
[353148365,1739611877515,-830.74,0.00011698,2]
[353148366,1739611877525,-769.25,0.00011698,2]
[353148367,1739611877699,-897.43,0.00011698,2]
[353148368,1739611877709,-1011.81,0.00011698,2]
[353148369,1739611877719,-500.0,0.00011698,2]
[353148370,1739611877728,-1292.79,0.00011698,2]
[353148371,1739611877737,-500.0,0.00011698,2]
[353148372,1739611877747,-500.0,0.00011698,2]
[353148373,1739611877756,-1639.04,0.00011698,2]
[353148374,1739611877765,-500.0,0.00011698,2]
[353148375,1739611877774,-695.46,0.00011698,2]
[353148376,1739611877783,-746.86,0.00011698,2]
[353148377,1739611877792,-850.54,0.00011698,2]
[353148378,1739611877801,-734.88,0.00011698,2]
[353148379,1739611877811,-1135.06,0.00011698,2]
[353148380,1739611877820,-834.87,0.00011698,2]
[353148381,1739611877830,-500.0,0.00011698,2]
[353148382,1739611877839,-505.21,0.00011698,2]
[353148383,1739611877848,-500.0,0.00011698,2]
[353148384,1739611877858,-622.66,0.00011698,2]
[353148385,1739611877867,-824.06,0.00011698,2]
[353148386,1739611877876,-500.0,0.00011698,2]
[353148387,1739611877887,-500.0,0.00011698,2]
[353148388,1739611877896,-1491.64,0.00011698,2]
[353148389,1739611877910,-500.0,0.00011698,2]
[353148390,1739611877920,-587.54,0.00011698,2]
[353148391,1739611877929,-510.9,0.00011698,2]
[353148392,1739611877939,-500.0,0.00011698,2]
[353148393,1739611877949,-1098.7,0.00011698,2]
[353148394,1739611877959,-500.0,0.00011698,2]
[353148395,1739611877969,-879.19,0.00011698,2]
[353148396,1739611877978,-697.57,0.00011698,2]
[353148397,1739611877989,-845.88,0.00011698,2]
[353148398,1739611877999,-500.0,0.00011698,2]
[353148399,1739611878010,-500.0,0.00011698,2]
[353148400,1739611878020,-500.0,0.00011698,2]
[353148401,1739611878030,-927.84,0.00011698,2]
[353148402,1739611878040,-1000.0,0.00011698,2]
[353148403,1739611878050,-500.0,0.00011698,2]
[353148404,1739611878060,-910.15,0.00011698,2]
[353148405,1739611878070,-1188.23,0.00011698,2]
[353148406,1739611878080,-677.74,0.00011698,2]
[353148407,1739611878090,-500.0,0.00011698,2]
[353148408,1739611878100,-500.0,0.00011698,2]
[353148409,1739611878109,-396.32204097,0.00011698,2]
[353148410,1739611878119,-1676.44,0.00011698,2]
[353148411,1739611878129,-964.59,0.00011698,2]
[353148412,1739611878139,-1174.04,0.00011698,2]
[353148413,1739611878149,-500.0,0.00011698,2]
[353148414,1739611878159,-728.47,0.00011698,2]
[353148415,1739611878169,-703.23,0.00011698,2]
[353148416,1739611878179,-500.0,0.00011698,2]
[353148417,1739611878190,-1086.08,0.00011698,2]
[353148418,1739611878200,-500.0,0.00011698,2]
[353148419,1739611878210,-500.0,0.00011698,2]
[353148420,1739611878219,-500.0,0.00011698,2]
[353148421,1739611878229,-748.0,0.00011698,2]
[353148422,1739611878239,-957.02,0.00011698,2]
[353148423,1739611878248,-1604.66,0.00011698,2]
[353148424,1739611878259,-704.0,0.00011698,2]
[353148425,1739611878270,-623.33,0.00011698,2]
[353148426,1739611878280,-2157.01,0.00011698,2]
[353148427,1739611878291,-1200.0,0.00011712,2]
[353148428,1739611878301,-152.73019486,0.00011733,2]
[353148429,1739611878312,-500.0,0.00011733,2]
[353148430,1739611878322,-500.0,0.00011733,2]
[353148431,1739611878332,-159.727904,0.00011733,2]
[353148432,1739611878342,-150.7432094,0.00011733,2]
[353148433,1739611878352,-151.2423591,0.00011733,2]
[353148434,1739611878362,-150.7432094,0.00011733,2]
[353148435,1739611878372,-200.1590297,0.00011733,2]
[353148436,1739611878381,-162.44807018,0.00011733,2]
[353148437,1739611878391,-150.7432094,0.00011733,2]
[353148438,1739611878401,-160.2840474,0.00011733,2]
[353148439,1739611878412,-150.7432094,0.00011733,2]
[353148440,1739611878422,-154.736407,0.00011733,2]
[353148441,1739611878433,-159.727904,0.00011733,2]
[353148442,1739611878443,-160.7262034,0.00011733,2]
[353148443,1739611878453,-151.7415088,0.00011733,2]
[353148444,1739611878463,-154.736407,0.00011733,2]
[353148445,1739611878473,-151.7415088,0.00011733,2]
[353148446,1739611878483,-150.7432094,0.00011733,2]
[353148447,1739611878493,-150.7432094,0.00011744,2]
[353148448,1739611878503,-156.7330058,0.00011744,2]
[353148449,1739611878513,-159.727904,0.00011744,2]
[353148450,1739611878523,-150.7432094,0.00011744,2]
[353148451,1739611878532,-150.7432094,0.00011744,2]
[353148452,1739611878542,-150.7432094,0.00011744,2]
[353148453,1739611878551,-159.727904,0.00011744,2]
[353148454,1739611878560,-159.727904,0.00011744,2]
[353148455,1739611878571,-150.7432094,0.00011744,2]
[353148456,1739611878580,-159.727904,0.00011744,2]
[353148457,1739611878593,-159.727904,0.00011744,2]
[353148458,1739611878605,-354.91595694,0.00011749,2]
[353148459,1739611878615,-200.6581794,0.00011758,2]
[353148460,1739611878626,-160.2270537,0.00011758,2]
[353148461,1739611878637,-154.736407,0.00011758,2]
[353148462,1739611878647,-150.7432094,0.00011758,2]
[353148463,1739611878658,-160.7262034,0.00011758,2]
[353148464,1739611878668,-150.7432094,0.00011758,2]
[353148465,1739611878679,-159.727904,0.00011758,2]
[353148466,1739611878689,-154.736407,0.00011758,2]
[353148467,1739611878699,-159.727904,0.00011758,2]
[353148468,1739611878709,-159.727904,0.00011758,2]
[353148469,1739611878719,-160.0,0.00011758,2]
[353148470,1739611878730,-159.727904,0.00011758,2]
[353148471,1739611878740,-159.727904,0.00011758,2]
[353148472,1739611878750,-154.736407,0.00011758,2]
[353148473,1739611878762,-500.0,0.00011758,2]
[353148474,1739611878772,-242.85332816,0.00011758,2]
[353148475,1739611878782,-199.65988,0.00011758,2]
[353148476,1739611878793,-150.7432094,0.00011758,2]
[353148477,1739611878804,-160.0,0.00011758,2]
[353148478,1739611878814,-150.7432094,0.00011758,2]
[353148479,1739611878824,-280.0,0.0001176,2]
[353148480,1739611878834,-165.11,0.00011767,2]
[353148481,1739611878845,-872.98,0.00011778,2]
[353148482,1739611878855,-1506.85,0.00011778,2]
[353148483,1739611878865,-1356.16,0.00011779,2]
[353148484,1739611878876,-725.47,0.00011779,2]
[353148485,1739611878886,-533.638194,0.0001178,2]
[353148486,1739611878896,-569.681091,0.0001178,2]
[353148487,1739611878906,-500.0,0.0001178,2]
[353148488,1739611878915,-500.0,0.0001178,2]
[353148489,1739611878925,-500.0,0.0001178,2]
[353148490,1739611878935,-500.0,0.0001178,2]
[353148491,1739611878944,-500.0,0.0001178,2]
[353148492,1739611878954,-268.29763923,0.0001178,2]
[353148493,1739611878963,-500.0,0.0001178,2]
[353148494,1739611878973,-500.0,0.0001178,2]
[353148495,1739611878983,-500.0,0.0001178,2]
[353148496,1739611878993,-661.16,0.0001178,2]
[353148497,1739611879002,-602.88,0.0001178,2]
[353148498,1739611879013,-500.0,0.0001178,2]
[353148499,1739611879023,-500.0,0.0001178,2]
[353148500,1739611879032,-602.21,0.0001178,2]
[353148501,1739611879042,-500.0,0.0001178,2]
[353148502,1739611879053,-559.76,0.0001178,2]
[353148503,1739611879063,-500.0,0.0001178,2]
[353148504,1739611879072,-500.0,0.0001178,2]
[353148505,1739611879082,-539.09,0.0001178,2]
[353148506,1739611879092,-500.0,0.0001178,2]
[353148507,1739611879102,-500.0,0.0001178,2]
[353148508,1739611879112,-500.0,0.0001178,2]
[353148509,1739611879122,-500.0,0.0001178,2]
[353148510,1739611879132,-642.55,0.0001178,2]
[353148511,1739611879141,-500.0,0.0001178,2]
[353148512,1739611879151,-500.0,0.0001178,2]
[353148513,1739611879162,-610.65427101,0.0001178,2]
[353148514,1739611879171,-500.0,0.0001178,2]
[353148515,1739611879182,-509.2,0.0001178,2]
[353148516,1739611879192,-583.23,0.0001178,2]
[353148517,1739611879203,-588.51,0.0001178,2]
[353148518,1739611879213,-500.0,0.0001178,2]
[353148519,1739611879223,-500.0,0.0001178,2]
[353148520,1739611879232,-398.53213158,0.0001178,2]
[353148521,1739611879243,-500.0,0.0001178,2]
[353148522,1739611879253,-666.54,0.0001178,2]
[353148523,1739611879266,-500.0,0.0001178,2]
[353148524,1739611879275,-500.0,0.0001178,2]
[353148525,1739611879286,-553.58,0.0001178,2]
[353148526,1739611879296,-656.03,0.0001178,2]
[353148527,1739611879306,-500.0,0.0001178,2]
[353148528,1739611879317,-500.0,0.0001178,2]
[353148529,1739611879327,-569.62,0.0001178,2]
[353148530,1739611879337,-550.52323985,0.0001178,2]
[353148531,1739611879347,-500.0,0.0001178,2]
[353148532,1739611879357,-500.0,0.0001178,2]
[353148533,1739611879367,-500.0,0.0001178,2]
[353148534,1739611879376,-628.27,0.0001178,2]
[353148535,1739611879386,-619.35,0.0001178,2]
[353148536,1739611879396,-572.09,0.0001178,2]
[353148537,1739611879406,-682.02,0.0001178,2]
[353148538,1739611879416,-500.0,0.0001178,2]
[353148539,1739611879425,-812.88,0.0001178,2]
[353148540,1739611879435,-500.0,0.0001178,2]
[353148541,1739611879445,-500.0,0.0001178,2]
[353148542,1739611879455,-672.16,0.0001178,2]
[353148543,1739611879464,-500.0,0.0001178,2]
[353148544,1739611879474,-361.28565644,0.0001178,2]
[353148545,1739611879483,-500.0,0.0001178,2]
[353148546,1739611879493,-500.0,0.0001178,2]
[353148547,1739611879502,-500.0,0.0001178,2]
[353148548,1739611879514,-575.78,0.0001178,2]
[353148549,1739611879523,-615.98,0.0001178,2]
[353148550,1739611879532,-500.0,0.0001178,2]
[353148551,1739611879542,-500.0,0.0001178,2]
[353148552,1739611879551,-500.0,0.0001178,2]
[353148553,1739611879560,-500.0,0.0001178,2]
[353148554,1739611879569,-691.81,0.0001178,2]
[353148555,1739611879579,-500.0,0.0001178,2]
[353148556,1739611879588,-459.33378326,0.0001178,2]
[353148557,1739611879601,-778.06,0.0001178,2]
[353148558,1739611879610,-648.19,0.0001178,2]
[353148559,1739611879619,-536.79,0.0001178,2]
[353148560,1739611879629,-638.9,0.0001178,2]
[353148561,1739611879638,-500.0,0.0001178,2]
[353148562,1739611879648,-1073.44,0.0001178,2]
[353148563,1739611879657,-676.69,0.0001178,2]
[353148564,1739611879667,-500.0,0.0001178,2]
[353148565,1739611879676,-568.45,0.0001178,2]
[353148566,1739611879685,-1057.92,0.0001178,2]
[353148567,1739611879695,-500.0,0.0001178,2]
[353148568,1739611879705,-500.0,0.0001178,2]
[353148569,1739611879716,-1086.69,0.0001178,2]
[353148570,1739611879725,-829.19,0.0001178,2]
[353148571,1739611879734,-500.0,0.0001178,2]
[353148572,1739611879744,-793.24,0.0001178,2]
[353148573,1739611879754,-500.0,0.0001178,2]
[353148574,1739611879764,-615.24,0.0001178,2]
[353148575,1739611879774,-783.17,0.0001178,2]
[353148576,1739611879783,-991.47,0.0001178,2]
[353148577,1739611879792,-1433.75,0.0001178,2]
[353148578,1739611879801,-971.58,0.0001178,2]
[353148579,1739611879811,-789.55,0.0001178,2]
[353148580,1739611879820,-552.21,0.0001178,2]
[353148581,1739611879829,-500.0,0.0001178,2]
[353148582,1739611879839,-1175.04,0.0001178,2]
[353148583,1739611879848,-500.0,0.0001178,2]
[353148584,1739611879857,-731.56,0.0001178,2]
[353148585,1739611879869,-500.0,0.0001178,2]
[353148586,1739611879879,-2056.44,0.0001178,2]
[353148587,1739611879889,-529.5,0.0001178,2]
[353148588,1739611879900,-703.41,0.0001178,2]
[353148589,1739611879909,-500.0,0.0001178,2]
[353148590,1739611879918,-895.05,0.0001178,2]
[353148591,1739611879928,-717.51,0.0001178,2]
[353148592,1739611879937,-610.86,0.0001178,2]
[353148593,1739611879947,-1754.36,0.0001178,2]
[353148594,1739611879956,-743.87,0.0001178,2]
[353148595,1739611879966,-1009.67,0.0001178,2]
[353148596,1739611879975,-2982.91,0.0001178,2]
[353148597,1739611879984,-995.96,0.0001178,2]
[353148598,1739611879993,-500.0,0.0001178,2]
[353148599,1739611880002,-1159.35,0.0001178,2]
[353148600,1739611880012,-581.33,0.0001178,2]
[353148601,1739611880021,-779.91,0.0001178,2]
[353148602,1739611880030,-735.73,0.0001178,2]
[353148603,1739611880039,-1222.91,0.0001178,2]
[353148604,1739611880104,-1141.54,0.0001178,2]
[353148605,1739611880113,-657.56,0.0001178,2]
[353148606,1739611880123,-921.4,0.0001178,2]
[353148607,1739611880132,-802.93,0.0001178,2]
[353148608,1739611880141,-560.26,0.0001178,2]
[353148609,1739611880150,-646.72,0.0001178,2]
[353148610,1739611880159,-1756.73,0.0001178,2]
[353148611,1739611880168,-2263.15,0.0001178,2]
[353148612,1739611880178,-630.63,0.0001178,2]
[353148613,1739611880187,-645.55,0.0001178,2]
[353148614,1739611880196,-500.0,0.0001178,2]
[353148615,1739611880205,-904.92,0.0001178,2]
[353148616,1739611880215,-864.22,0.0001178,2]
[353148617,1739611880224,-500.0,0.0001178,2]
[353148618,1739611880234,-830.74,0.0001178,2]
[353148619,1739611880243,-769.25,0.0001178,2]
[353148620,1739611880252,-897.43,0.0001178,2]
[353148621,1739611880264,-1011.81,0.0001178,2]
[353148622,1739611880273,-500.0,0.0001178,2]
[353148623,1739611880282,-1292.79,0.0001178,2]
[353148624,1739611880291,-500.0,0.0001178,2]
[353148625,1739611880299,-500.0,0.0001178,2]
[353148626,1739611880309,-1639.04,0.0001178,2]
[353148627,1739611880318,-500.0,0.0001178,2]
[353148628,1739611880327,-695.46,0.0001178,2]
[353148629,1739611880337,-746.86,0.0001178,2]
[353148630,1739611880347,-850.54,0.0001178,2]
[353148631,1739611880357,-734.88,0.0001178,2]
[353148632,1739611880367,-1135.06,0.0001178,2]
[353148633,1739611880377,-834.87,0.0001178,2]
[353148634,1739611880386,-500.0,0.0001178,2]
[353148635,1739611880395,-505.21,0.0001178,2]
[353148636,1739611880404,-500.0,0.0001178,2]
[353148637,1739611880414,-622.66,0.0001178,2]
[353148638,1739611880424,-824.06,0.0001178,2]
[353148639,1739611880433,-500.0,0.0001178,2]
[353148640,1739611880442,-500.0,0.0001178,2]
[353148641,1739611880452,-1491.64,0.0001178,2]
[353148642,1739611880461,-500.0,0.0001178,2]
[353148643,1739611880471,-587.54,0.0001178,2]
[353148644,1739611880482,-510.9,0.0001178,2]
[353148645,1739611880491,-500.0,0.0001178,2]
[353148646,1739611880500,-1098.7,0.0001178,2]
[353148647,1739611880512,-500.0,0.0001178,2]
[353148648,1739611880521,-879.19,0.0001178,2]
[353148649,1739611880531,-697.57,0.0001178,2]
[353148650,1739611880540,-845.88,0.0001178,2]
[353148651,1739611880549,-500.0,0.0001178,2]
[353148652,1739611880558,-500.0,0.0001178,2]
[353148653,1739611880568,-500.0,0.0001178,2]
[353148654,1739611880577,-927.84,0.0001178,2]
[353148655,1739611880586,-1000.0,0.0001178,2]
[353148656,1739611880597,-500.0,0.0001178,2]
[353148657,1739611880607,-910.15,0.0001178,2]
[353148658,1739611880616,-1188.23,0.0001178,2]
[353148659,1739611880626,-677.74,0.0001178,2]
[353148660,1739611880636,-500.0,0.0001178,2]
[353148661,1739611880647,-500.0,0.0001178,2]
[353148662,1739611880657,-1676.44,0.0001178,2]
[353148663,1739611880666,-964.59,0.0001178,2]
[353148664,1739611880676,-1174.04,0.0001178,2]
[353148665,1739611880687,-500.0,0.0001178,2]
[353148666,1739611880697,-728.47,0.0001178,2]
[353148667,1739611880707,-703.23,0.0001178,2]
[353148668,1739611880716,-500.0,0.0001178,2]
[353148669,1739611880726,-1086.08,0.0001178,2]
[353148670,1739611880735,-500.0,0.0001178,2]
[353148671,1739611880744,-500.0,0.0001178,2]
[353148672,1739611880754,-500.0,0.0001178,2]
[353148673,1739611880765,-748.0,0.0001178,2]
[353148674,1739611880774,-957.02,0.0001178,2]
[353148675,1739611880783,-1604.66,0.0001178,2]
[353148676,1739611880793,-704.0,0.0001178,2]
[353148677,1739611880804,-623.33,0.0001178,2]
[353148678,1739611880814,-2157.01,0.0001178,2]
[353148679,1739611880824,-501.8163031,0.00011799,2]
[353148680,1739611880834,-502.76874408,0.00011802,2]
[353148681,1739611880843,-153.91859302,0.00011802,2]
[353148682,1739611880852,-500.0,0.00011807,2]
[353148683,1739611880861,-150.7432094,0.00011808,2]
[353148684,1739611880870,-179.693892,0.00011808,2]
[353148685,1739611880880,-150.7432094,0.00011808,2]
[353148686,1739611880890,-150.7432094,0.00011808,2]
[353148687,1739611880900,-153.2389579,0.00011808,2]
[353148688,1739611880909,-150.7432094,0.00011808,2]
[353148689,1739611880918,-167.7142992,0.00011808,2]
[353148690,1739611880928,-226.17641997,0.00011808,2]
[353148691,1739611880938,-150.7432094,0.00011808,2]
[353148692,1739611880948,-154.736407,0.00011808,2]
[353148693,1739611880958,-189.676886,0.00011808,2]
[353148694,1739611880968,-150.7432094,0.00011808,2]
[353148695,1739611880977,-159.727904,0.00011808,2]
[353148696,1739611880988,-160.7262034,0.00011808,2]
[353148697,1739611880997,-154.736407,0.00011808,2]
[353148698,1739611881006,-157.7313052,0.00011808,2]
[353148699,1739611881016,-160.7252054,0.00011808,2]
[353148700,1739611881025,-2082.15,0.0001181,2]
[353148701,1739611881035,-31977.69060721,0.00011811,2]
[353148702,1739611881044,-1206.03453577,0.00011828,2]
[353148703,1739611881054,-976.58,0.00011836,2]
[353148704,1739611881063,-30151.48224858,0.00011845,2]
[353148705,1739611881073,-875.79648252,0.00011845,2]
[353148706,1739611881082,-872.98,0.00011862,2]
[353148707,1739611881091,-725.47,0.00011862,2]
[353148708,1739611881101,-1506.85,0.00011862,2]
[353148709,1739611881110,-533.638194,0.00011863,2]
[353148710,1739611881119,-569.681091,0.00011863,2]
[353148711,1739611881129,-373.39715839,0.00011863,2]
[353148712,1739611881138,-605.02331272,0.00011863,2]
[353148713,1739611881147,-381.24698191,0.00011863,2]
[353148714,1739611881156,-500.0,0.00011863,2]
[353148715,1739611881166,-500.0,0.00011863,2]
[353148716,1739611881175,-500.0,0.00011863,2]
[353148717,1739611881185,-500.0,0.00011863,2]
[353148718,1739611881195,-500.0,0.00011863,2]
[353148719,1739611881204,-661.16,0.00011863,2]
[353148720,1739611881213,-602.88,0.00011863,2]
[353148721,1739611881222,-500.0,0.00011863,2]
[353148722,1739611881231,-500.0,0.00011863,2]
[353148723,1739611881241,-602.21,0.00011863,2]
[353148724,1739611881250,-500.0,0.00011863,2]
[353148725,1739611881260,-559.76,0.00011863,2]
[353148726,1739611881269,-500.0,0.00011863,2]
[353148727,1739611881279,-500.0,0.00011863,2]
[353148728,1739611881288,-500.0,0.00011863,2]
[353148729,1739611881298,-500.0,0.00011863,2]
[353148730,1739611881307,-500.0,0.00011863,2]
[353148731,1739611881316,-500.0,0.00011863,2]
[353148732,1739611881326,-642.55,0.00011863,2]
[353148733,1739611881335,-500.0,0.00011863,2]
[353148734,1739611881344,-500.0,0.00011863,2]
[353148735,1739611881353,-500.0,0.00011863,2]
[353148736,1739611881362,-509.2,0.00011863,2]
[353148737,1739611881372,-583.23,0.00011863,2]
[353148738,1739611881381,-588.51,0.00011863,2]
[353148739,1739611881390,-500.0,0.00011863,2]
[353148740,1739611881399,-500.0,0.00011863,2]
[353148741,1739611881409,-500.0,0.00011863,2]
[353148742,1739611881418,-666.54,0.00011863,2]
[353148743,1739611881427,-500.0,0.00011863,2]
[353148744,1739611881436,-500.0,0.00011863,2]
[353148745,1739611881445,-553.58,0.00011863,2]
[353148746,1739611881454,-656.03,0.00011863,2]
[353148747,1739611881464,-500.0,0.00011863,2]
[353148748,1739611881474,-500.0,0.00011863,2]
[353148749,1739611881484,-569.62,0.00011863,2]
[353148750,1739611881494,-500.0,0.00011863,2]
[353148751,1739611881503,-500.0,0.00011863,2]
[353148752,1739611881515,-500.0,0.00011863,2]
[353148753,1739611881524,-628.27,0.00011863,2]
[353148754,1739611881534,-619.35,0.00011863,2]
[353148755,1739611881544,-572.09,0.00011863,2]
[353148756,1739611881553,-682.02,0.00011863,2]
[353148757,1739611881562,-500.0,0.00011863,2]
[353148758,1739611881571,-812.88,0.00011863,2]
[353148759,1739611881581,-500.0,0.00011863,2]
[353148760,1739611881596,-500.0,0.00011863,2]
[353148761,1739611881605,-672.16,0.00011863,2]